bitfinex-derivatives/quotes_SOLF0:USTF0_20230830
["timestamp","ask_amount","ask_price","bid_price","bid_amount"]
[1693410461890,0.66820933,20.874,20.869,0.7576558]
[1693410472498,0.66820933,20.874,20.869,104.6276558]
[1693410476494,103.87,20.873,20.869,0.7576558]
[1693410480696,103.87,20.87,20.863,103.87]
[1693410480903,103.87,20.867,20.86,103.87]
[1693410481395,103.87,20.864,20.857,141.59304742]
[1693410482102,103.87,20.865,20.858,103.87]
[1693410486117,26.51382707,20.874,20.855,103.87]
[1693410486118,103.87,20.863,20.855,103.87]
[1693410487026,21.5627,20.873,20.849,103.87]
[1693410487027,103.87,20.856,20.849,103.87]
[1693410487408,103.87,20.852,20.844,103.87]
[1693410488622,103.87,20.85,20.842,103.87]
[1693410491934,103.87,20.851,20.843,103.87]
[1693410492314,19.8851,20.859,20.84,115.7]
[1693410492315,115.7,20.853,20.84,115.7]
[1693410493120,115.7,20.855,20.843,115.7]
[1693410495126,19.8851,20.859,20.846,115.7]
[1693410495127,135.5851,20.859,20.846,115.7]
[1693410495322,115.7,20.859,20.846,115.7]
[1693410496421,115.7,20.862,20.85,115.7]
[1693410501436,0.69253765,20.858,20.85,115.7]
[1693410501932,0.69253765,20.858,20.851,20.7184]
[1693410502443,0.69253765,20.858,20.85,115.7]
[1693410506638,0.69253765,20.858,20.851,21.2756]
[1693410507732,0.69253765,20.858,20.853,14.38]
[1693410513642,0.69253765,20.858,20.853,15.12130238]
[1693410515847,0.69253765,20.858,20.853,53.09253919]
[1693410516063,115.7,20.864,20.853,15.12130238]
[1693410521969,0.66239134,20.861,20.855,14.38]
[1693410526664,0.66239134,20.861,20.854,115.7]
[1693410527063,0.66239134,20.861,20.852,38.93435552]
[1693410527064,0.66239134,20.861,20.85,115.7]
[1693410527654,115.7,20.859,20.848,14.38]
[1693410530455,115.7,20.859,20.847,115.7]
[1693410530964,115.7,20.859,20.848,14.39]
[1693410543366,115.7,20.859,20.847,115.7]
[1693410543568,115.7,20.857,20.846,14.39]
[1693410544364,115.7,20.857,20.845,115.7]
[1693410544562,115.7,20.854,20.842,14.39]
[1693410545866,115.7,20.854,20.841,115.7]
[1693410546331,925.6,20.839,20.797,500.0]
[1693410546562,115.7,20.822,20.812,14.39]
[1693410546863,489.50883719,20.839,20.81,115.7]
[1693410546864,115.7,20.827,20.81,115.7]
[1693410547067,115.7,20.827,20.812,19.6363]
[1693410547257,115.7,20.821,20.806,115.7]
[1693410547462,140.20213473,20.82,20.811,19.6363]
[1693410547667,24.50213473,20.819,20.811,17.15190095]
[1693410548368,12.17,20.818,20.811,17.15190095]
[1693410548667,12.17,20.816,20.811,17.15190095]
[1693410548866,24.50213473,20.815,20.811,17.15190095]
[1693410549060,24.50213473,20.814,20.811,17.15190095]
[1693410549264,24.50213473,20.813,20.811,17.15190095]
[1693410549510,24.50213473,20.812,20.811,17.15190095]
[1693410550460,12.17,20.816,20.811,17.15190095]
[1693410550670,23.77564153,20.815,20.811,17.15190095]
[1693410552167,115.7,20.819,20.811,17.15190095]
[1693410552773,115.7,20.821,20.811,17.15190095]
[1693410553281,115.7,20.821,20.812,14.39]
[1693410554811,12.17,20.812,20.794,14.39]
[1693410554975,12.17,20.808,20.804,21.0252]
[1693410557568,210.59,20.805,20.804,21.0252]
[1693410558011,210.59,20.805,20.794,38.38310129]
[1693410558277,210.59,20.805,20.795,30.47947279]
[1693410558476,210.59,20.805,20.796,8.82917279]
[1693410560970,12.21,20.804,20.796,8.82917279]
[1693410561172,12.21,20.801,20.796,8.82917279]
[1693410561374,12.21,20.801,20.795,21.6503]
[1693410562079,210.59,20.802,20.795,21.6503]
[1693410563085,842.36,20.811,20.795,21.6503]
[1693410563086,12.21,20.805,20.795,21.6503]
[1693410567083,12.21,20.799,20.795,21.6503]
[1693410567279,12.21,20.796,20.795,21.6503]
[1693410567538,210.59,20.797,20.795,21.6503]
[1693410567686,12.21,20.799,20.795,21.6503]
[1693410569289,12.21,20.799,20.794,38.04324843]
[1693410569496,12.21,20.799,20.791,21.1518]
[1693410569785,12.21,20.799,20.792,8.83242246]
[1693410569988,210.59,20.8,20.792,8.83242246]
[1693410570178,12.21,20.802,20.792,8.83242246]
[1693410571478,842.36,20.811,20.792,8.83242246]
[1693410571479,12.21,20.799,20.792,8.83242246]
[1693410578383,210.59,20.8,20.792,8.83242246]
[1693410582493,842.36,20.811,20.792,8.83242246]
[1693410582494,114.94,20.801,20.792,8.83242246]
[1693410589602,114.94,20.803,20.792,8.83242246]
[1693410591706,12.21,20.805,20.792,123.77242246]
[1693410591949,12.21,20.805,20.794,14.42]
[1693410592098,12.21,20.805,20.795,8.83242246]
[1693410592300,12.21,20.805,20.794,14.42]
[1693410592616,12.21,20.805,20.795,8.83242246]
[1693410592804,12.21,20.805,20.794,14.42]
[1693410592996,12.21,20.805,20.795,8.83242246]
[1693410593304,12.21,20.805,20.792,114.94]
[1693410593500,12.21,20.805,20.794,14.42]
[1693410593807,12.21,20.805,20.792,114.94]
[1693410594099,12.21,20.805,20.794,14.42]
[1693410594307,12.21,20.805,20.792,114.94]
[1693410594602,12.21,20.805,20.794,14.42]
[1693410594806,12.21,20.805,20.795,8.83113087]
[1693410595013,12.21,20.805,20.794,14.42]
[1693410595231,12.21,20.805,20.795,8.83113087]
[1693410595499,459.76,20.811,20.791,60.35602873]
[1693410595500,114.94,20.801,20.791,60.35602873]
[1693410595706,114.94,20.801,20.792,8.83280088]
[1693410596309,114.94,20.801,20.791,60.35602873]
[1693410596608,114.94,20.801,20.792,8.8328725]
[1693410597710,114.94,20.801,20.791,60.35602873]
[1693410597904,114.94,20.799,20.791,60.35602873]
[1693410599479,114.94,20.799,20.792,8.8328171]
[1693410599603,114.94,20.799,20.791,60.35602873]
[1693410599798,114.94,20.799,20.792,8.83275857]
[1693410600205,114.94,20.801,20.792,8.83275857]
[1693410601503,114.94,20.805,20.792,8.83275857]
[1693410602602,12.21,20.816,20.796,500.0]
[1693410602813,114.94,20.811,20.799,14.42]
[1693410604102,12.21,20.813,20.801,14.42]
[1693410604509,12.21,20.813,20.802,21.5896]
[1693410607116,114.94,20.814,20.802,21.5896]
[1693410607966,12.21,20.816,20.805,14.42]
[1693410610317,12.21,20.816,20.804,114.94]
[1693410610619,12.21,20.816,20.805,14.42]
[1693410611716,0.66692538,20.812,20.805,14.42]
[1693410612224,0.66692538,20.812,20.808,0.67610923]
[1693410614311,114.94,20.817,20.808,0.67610923]
[1693410614514,26.4350545,20.82,20.809,114.94]
[1693410614919,114.94,20.826,20.812,114.94]
[1693410615224,22.46380039,20.825,20.812,114.94]
[1693410615424,22.46380039,20.825,20.805,500.0]
[1693410615425,22.46380039,20.825,20.815,114.94]
[1693410615723,22.46380039,20.824,20.815,114.94]
[1693410615923,12.21,20.827,20.815,114.94]
[1693410619568,12.21,20.827,20.819,0.72512188]
[1693410620122,114.94,20.828,20.819,0.72512188]
[1693410622029,12.19,20.83,20.819,115.66512188]
[1693410622923,12.19,20.83,20.819,114.94]
[1693410626431,0.73979543,20.827,20.819,114.94]
[1693410626631,0.73979543,20.827,20.822,0.78160977]
[1693410628533,12.92979543,20.827,20.822,0.78160977]
[1693410640748,12.19,20.824,20.822,0.78160977]
[1693410643650,12.92979543,20.827,20.822,0.78160977]
[1693410648447,0.73979543,20.827,20.822,0.78160977]
[1693410650057,12.19,20.833,20.823,14.41]
[1693410651951,114.94,20.836,20.823,129.35]
[1693410652148,12.19,20.834,20.823,129.35]
[1693410652348,114.94,20.836,20.823,129.35]
[1693410652650,12.19,20.834,20.823,129.35]
[1693410652962,114.94,20.836,20.823,129.35]
[1693410653155,12.19,20.834,20.823,129.35]
[1693410653369,114.94,20.836,20.823,129.35]
[1693410653548,12.19,20.834,20.823,129.35]
[1693410653753,114.94,20.836,20.823,114.94]
[1693410653949,114.94,20.833,20.822,20.0478]
[1693410654155,12.19,20.831,20.822,20.0478]
[1693410654455,114.94,20.833,20.822,20.0478]
[1693410654653,12.19,20.831,20.822,20.0478]
[1693410654956,114.94,20.833,20.822,20.0478]
[1693410655154,12.19,20.831,20.822,20.0478]
[1693410655362,114.94,20.833,20.822,20.0478]
[1693410655658,12.19,20.831,20.822,20.0478]
[1693410655853,114.94,20.833,20.822,20.0478]
[1693410656058,12.19,20.831,20.822,20.0478]
[1693410656254,114.94,20.833,20.822,20.0478]
[1693410656465,12.19,20.831,20.822,20.0478]
[1693410656655,114.94,20.833,20.822,20.0478]
[1693410656857,12.19,20.831,20.822,20.0478]
[1693410657052,114.94,20.833,20.822,20.0478]
[1693410657249,12.19,20.831,20.822,20.0478]
[1693410657457,114.94,20.833,20.822,20.0478]
[1693410657660,12.19,20.831,20.822,20.0478]
[1693410657959,114.94,20.833,20.822,20.0478]
[1693410658260,12.19,20.831,20.822,20.0478]
[1693410658455,114.94,20.833,20.822,20.0478]
[1693410658668,12.19,20.831,20.822,20.0478]
[1693410658958,114.94,20.833,20.822,20.0478]
[1693410659158,12.19,20.831,20.822,20.0478]
[1693410659361,22.39339469,20.83,20.822,20.0478]
[1693410659554,22.39339469,20.829,20.822,20.0478]
[1693410659765,114.94,20.833,20.822,20.0478]
[1693410659956,12.19,20.831,20.822,20.0478]
[1693410660262,22.41050894,20.83,20.822,20.0478]
[1693410660456,12.19,20.827,20.822,20.0478]
[1693410662563,12.19,20.827,20.815,114.94]
[1693410662757,12.19,20.824,20.815,19.6953]
[1693410664468,22.43125124,20.823,20.815,19.6953]
[1693410672167,0.74690632,20.821,20.817,0.72372127]
[1693410679077,22.40094086,20.82,20.817,0.72372127]
[1693410680179,0.74690632,20.821,20.817,0.72372127]
[1693410680382,22.3995826,20.82,20.817,0.72372127]
[1693410685792,0.74690632,20.821,20.818,14.41]
[1693410686481,0.74690632,20.821,20.817,0.72372127]
[1693410692991,0.74690632,20.821,20.819,103.21]
[1693410701189,103.21,20.826,20.819,103.21]
[1693410711497,103.21,20.829,20.823,14.41]
[1693410711759,103.21,20.833,20.825,103.21]
[1693410712110,103.21,20.834,20.826,103.21]
[1693410722112,12.19,20.836,20.823,20.7296]
[1693410722113,115.4,20.836,20.828,103.21]
[1693410723703,103.21,20.832,20.826,14.41]
[1693410724007,103.21,20.832,20.825,103.21]
[1693410724705,103.21,20.832,20.83,0.77052714]
[1693410724904,12.19,20.831,20.83,0.77052714]
[1693410728014,103.21,20.832,20.83,0.77052714]
[1693410728681,103.21,20.833,20.83,0.77052714]
[1693410734011,0.065444,20.834,20.83,15.18052714]
[1693410734412,0.065444,20.834,20.831,20.5665]
[1693410736520,0.065444,20.834,20.832,14.41]
[1693410737319,103.21,20.841,20.833,103.21]
[1693410741924,103.21,20.839,20.832,14.41]
[1693410742223,12.18,20.838,20.832,14.41]
[1693410743023,12.18,20.838,20.831,123.7765]
[1693410746924,12.18,20.838,20.832,0.74557432]
[1693410751925,103.21,20.836,20.832,0.74557432]
[1693410757633,103.21,20.833,20.832,0.74557432]
[1693410759477,103.21,20.833,20.825,103.21]
[1693410759636,25.49202023,20.842,20.821,0.06]
[1693410759637,103.21,20.826,20.821,0.06]
[1693410759857,12.18,20.836,20.821,0.06]
[1693410759858,103.21,20.823,20.821,0.06]
[1693410762131,12.18,20.821,20.816,21.7647]
[1693410762735,103.21,20.818,20.816,21.7647]
[1693410766934,12.18,20.821,20.816,21.7647]
[1693410767139,12.18,20.821,20.814,103.21]
[1693410767345,12.18,20.821,20.815,19.9348]
[1693410768439,103.21,20.822,20.815,19.9348]
[1693410773948,12.2,20.821,20.815,19.9348]
[1693410780646,103.21,20.818,20.815,19.9348]
[1693410788863,103.21,20.817,20.815,19.9348]
[1693410791972,103.8885909,20.819,20.815,19.9348]
[1693410800273,103.21,20.816,20.815,19.9348]
[1693410800670,103.21,20.816,20.808,14.41]
[1693410801967,103.21,20.814,20.806,103.21]
[1693410805871,103.21,20.814,20.808,14.41]
[1693410810674,68.65962423,20.823,20.808,14.41]
[1693410810675,103.21,20.817,20.808,117.62]
[1693410826446,103.21,20.817,20.814,0.06]
[1693410837996,12.2,20.816,20.814,0.06]
[1693410840318,12.2,20.816,20.808,117.62]
[1693410841400,12.2,20.816,20.814,0.06]
[1693410843401,103.21,20.817,20.814,0.06]
[1693410855716,103.21,20.817,20.808,117.62]
[1693410856703,103.21,20.817,20.814,0.06]
[1693410862616,103.21,20.815,20.814,0.06]
[1693410868421,12.2,20.814,20.807,124.2826]
[1693410868930,68.65962423,20.823,20.812,14.41]
[1693410868931,103.21,20.819,20.812,14.41]
[1693410871521,103.21,20.819,20.814,0.06]
[1693410872020,103.21,20.82,20.814,0.06]
[1693410880134,103.21,20.822,20.814,103.27]
[1693410880631,103.21,20.822,20.815,19.7172]
[1693410881932,103.21,20.821,20.815,19.7172]
[1693410888850,103.21,20.818,20.815,19.7172]
[1693410890340,103.21,20.818,20.814,0.06]
[1693410890643,103.21,20.816,20.808,103.21]
[1693410892140,103.21,20.816,20.807,103.21]
[1693410892639,103.21,20.816,20.808,19.972]
[1693410901437,103.21,20.816,20.814,0.06]
[1693410901646,41.77423522,20.824,20.808,13.53179425]
[1693410901647,12.2,20.814,20.808,13.53179425]
[1693410901948,103.21,20.809,20.796,103.21]
[1693410902145,41.77423522,20.824,20.796,103.21]
[1693410902146,103.21,20.806,20.796,103.21]
[1693410904742,0.66042977,20.803,20.796,103.21]
[1693410904940,0.66042977,20.803,20.799,103.21]
[1693410905736,0.66042977,20.803,20.799,103.87324538]
[1693410905946,103.21,20.808,20.799,103.87324538]
[1693410906848,103.21,20.808,20.801,14.41]
[1693410910549,0.70465888,20.807,20.801,14.41]
[1693410910742,0.70465888,20.807,20.8,21.3365]
[1693410912052,103.91465888,20.807,20.8,21.3365]
[1693410912248,12.2,20.805,20.8,21.3365]
[1693410914575,103.21,20.806,20.801,14.41]
[1693410917168,0.70465888,20.807,20.801,14.41]
[1693410919955,0.70465888,20.807,20.8,124.5465]
[1693410922156,103.21,20.806,20.8,21.3365]
[1693410922552,0.70465888,20.807,20.801,103.21]
[1693410922950,0.70465888,20.807,20.802,20.2531]
[1693410932071,0.70465888,20.807,20.803,103.21]
[1693410939782,103.21,20.815,20.806,103.21]
[1693410940085,103.21,20.818,20.809,103.21]
[1693410940326,103.21,20.818,20.81,19.7082]
[1693410940485,29.57423522,20.824,20.814,14.42]
[1693410940486,103.21,20.822,20.814,14.42]
[1693410941693,103.21,20.822,20.816,0.65368561]
[1693410942284,103.21,20.823,20.816,0.65368561]
[1693410950492,29.57423522,20.824,20.818,103.21]
[1693410950985,29.57423522,20.824,20.819,20.3717]
[1693410952090,29.57423522,20.824,20.819,123.5817]
[1693410952895,12.19,20.827,20.821,103.21]
[1693410954493,103.21,20.828,20.821,103.21]
[1693410954693,103.21,20.828,20.819,20.3717]
[1693410954694,103.21,20.831,20.819,20.3717]
[1693410954887,12.19,20.834,20.827,103.21]
[1693410955189,103.21,20.835,20.827,103.21]
[1693410955496,103.21,20.838,20.83,103.21]
[1693410956794,103.21,20.836,20.828,103.21]
[1693410957187,103.21,20.836,20.829,21.4463]
[1693410957899,103.21,20.836,20.83,14.41]
[1693410958594,12.19,20.838,20.831,103.21]
[1693410960696,12.19,20.838,20.832,14.41]
[1693410962201,103.21,20.839,20.832,14.41]
[1693410962593,12.19,20.838,20.832,14.41]
[1693410962797,12.19,20.838,20.831,103.21]
[1693410964597,12.19,20.838,20.832,0.76228434]
[1693410965294,12.19,20.838,20.832,15.17228434]
[1693410971996,103.21,20.839,20.832,15.17228434]
[1693410972201,130.05182069,20.84,20.833,103.21]
[1693410972801,168.57702471,20.84,20.833,103.21]
[1693410979204,65.36702471,20.84,20.834,103.21]
[1693410981004,12.18,20.838,20.832,103.97228434]
[1693410981509,12.18,20.836,20.832,0.76228434]
[1693410982102,103.21,20.836,20.832,0.76228434]
[1693410982599,103.21,20.833,20.825,103.21]
[1693410984312,500.0,20.837,20.819,21.5026]
[1693410984313,12.18,20.827,20.82,103.21]
[1693410992116,103.21,20.826,20.818,103.21]
[1693410992601,103.21,20.826,20.819,20.8223]
[1693411000107,26.82054176,20.828,20.822,103.21]
[1693411001910,26.82054176,20.828,20.824,103.21]
[1693411002316,26.82054176,20.828,20.822,103.21]
[1693411003419,26.82054176,20.828,20.821,103.21]
[1693411011518,12.19,20.827,20.821,103.21]
[1693411012225,115.4,20.827,20.819,124.0323]
[1693411020422,22.12136589,20.846,20.823,14.41]
[1693411020630,566.36409767,20.847,20.828,103.21]
[1693411020631,500.0,20.847,20.828,103.21]
[1693411020925,103.21,20.836,20.828,103.21]
[1693411028130,103.21,20.833,20.826,103.21]
[1693411029934,24.75129899,20.836,20.829,103.21]
[1693411030432,24.75129899,20.836,20.83,21.6849]
[1693411031135,103.21,20.837,20.83,36.0949]
[1693411033335,103.21,20.837,20.83,21.6849]
[1693411039736,0.73636488,20.836,20.831,0.77711782]
[1693411040845,0.73636488,20.836,20.832,14.4]
[1693411041038,0.73636488,20.836,20.832,117.61]
[1693411042841,0.73636488,20.836,20.832,103.21]
[1693411043042,103.94636488,20.836,20.831,0.77711782]
[1693411044942,103.94636488,20.836,20.832,14.4]
[1693411045144,0.73636488,20.836,20.832,117.61]
[1693411050045,103.21,20.846,20.836,14.4]
[1693411050345,103.21,20.846,20.839,103.21]
[1693411051943,103.21,20.847,20.84,103.21]
[1693411054645,103.21,20.847,20.842,14.4]
[1693411058554,103.21,20.847,20.841,0.74781108]
[1693411062051,103.21,20.846,20.841,0.74781108]
[1693411062311,103.21,20.847,20.841,0.74781108]
[1693411063061,103.21,20.847,20.84,103.21]
[1693411068255,103.21,20.847,20.837,20.6266]
[1693411068256,103.21,20.85,20.843,103.21]
[1693411069750,28.80121649,20.855,20.843,103.21]
[1693411069968,103.21,20.85,20.843,103.21]
[1693411071957,103.21,20.851,20.844,103.21]
[1693411077264,103.21,20.851,20.845,0.78699502]
[1693411077777,0.7043772,20.85,20.845,0.78699502]
[1693411082063,103.9143772,20.85,20.845,0.78699502]
[1693411086366,0.7043772,20.85,20.846,14.39]
[1693411088467,0.7043772,20.85,20.845,103.99699502]
[1693411091675,0.7043772,20.85,20.846,14.39]
[1693411093169,0.7043772,20.85,20.848,14.39]
[1693411093475,103.21,20.858,20.849,103.21]
[1693411093675,103.21,20.858,20.851,103.21]
[1693411097974,103.21,20.86,20.853,14.39]
[1693411098882,103.21,20.863,20.856,103.21]
[1693411099373,103.21,20.866,20.859,103.21]
[1693411099587,22.17329305,20.873,20.841,19.15145208]
[1693411099588,103.21,20.872,20.864,103.21]
[1693411101978,103.21,20.872,20.863,103.21]
[1693411104581,103.21,20.868,20.86,103.21]
[1693411106786,537.42925658,20.877,20.857,103.21]
[1693411106787,103.21,20.865,20.857,103.21]
[1693411106989,103.21,20.862,20.854,103.21]
[1693411111492,28.40118728,20.865,20.852,103.21]
[1693411111493,103.21,20.859,20.852,103.21]
[1693411111987,103.21,20.854,20.849,21.4643]
[1693411112188,103.21,20.854,20.846,103.21]
[1693411120397,103.21,20.849,20.845,0.11579374]
[1693411120702,103.21,20.846,20.837,0.23168017]
[1693411120902,103.21,20.841,20.837,0.23168017]
[1693411122104,103.21,20.84,20.837,0.23168017]
[1693411122305,108.37697763,20.862,20.837,0.23168017]
[1693411122306,115.82,20.843,20.837,0.23168017]
[1693411123192,115.82,20.843,20.837,0.92866427]
[1693411126506,115.82,20.843,20.837,0.6969841]
[1693411134408,0.7262841,20.842,20.837,0.6969841]
[1693411142065,115.82,20.84,20.837,0.6969841]
[1693411142209,0.7262841,20.842,20.837,0.6969841]
[1693411142421,104.25,20.838,20.837,0.6969841]
[1693411143916,104.25,20.838,20.834,21.1049]
[1693411144111,104.25,20.835,20.827,104.25]
[1693411144320,104.25,20.835,20.828,20.1609]
[1693411145618,104.25,20.831,20.828,19.62257338]
[1693411145826,104.25,20.831,20.808,14.4]
[1693411145827,104.25,20.831,20.808,272.49437834]
[1693411146119,104.25,20.831,20.828,0.2317795]
[1693411148438,500.0,20.837,20.828,0.2317795]
[1693411148439,104.25,20.829,20.828,0.2317795]
[1693411153225,104.25,20.831,20.828,0.2317795]
[1693411153550,104.25,20.835,20.828,0.2317795]
[1693411155430,104.25,20.838,20.83,104.25]
[1693411163639,104.25,20.837,20.83,104.25]
[1693411175750,104.25,20.837,20.83,104.36587609]
[1693411176982,104.25,20.834,20.83,0.11587609]
[1693411182054,104.25,20.833,20.83,0.11587609]
[1693411186860,104.25,20.833,20.826,14.57384892]
[1693411186861,104.25,20.833,20.826,14.4]
[1693411189856,104.25,20.836,20.828,104.25]
[1693411191363,104.25,20.836,20.83,0.11587577]
[1693411192064,104.25,20.837,20.83,104.36587577]
[1693411200714,20.7412,20.841,20.83,0.11587577]
[1693411200717,537.76476235,20.848,20.83,0.11587577]
[1693411201029,20.3973,20.84,20.83,0.11587577]
[1693411201472,20.3973,20.84,20.819,19.8242]
[1693411202281,0.7037401,20.837,20.833,0.65556994]
[1693411205271,0.7037401,20.837,20.819,19.8242]
[1693411206068,0.7037401,20.837,20.83,0.11587577]
[1693411206479,0.7037401,20.837,20.826,0.17384843]
[1693411206871,500.0,20.838,20.826,0.17384843]
[1693411207377,20.3973,20.84,20.826,0.17384843]
[1693411207573,500.0,20.838,20.826,0.17384843]
[1693411207916,20.3973,20.84,20.831,0.70846268]
[1693411208080,500.0,20.838,20.831,0.70846268]
[1693411208374,500.0,20.838,20.826,0.17384843]
[1693411209781,20.3973,20.84,20.826,0.17384843]
[1693411210174,500.0,20.838,20.826,0.17384843]
[1693411210677,20.3973,20.84,20.826,0.17384843]
[1693411210877,500.0,20.838,20.826,0.17384843]
[1693411213208,0.71656001,20.834,20.826,0.17384843]
[1693411216377,0.71656001,20.834,20.818,0.28986339]
[1693411216378,0.71656001,20.834,20.818,14.4]
[1693411216581,0.71656001,20.834,20.809,258.15257431]
[1693411216782,0.71656001,20.834,20.815,58.42294927]
[1693411216977,0.71656001,20.834,20.809,258.15257431]
[1693411217283,37.86743514,20.838,20.81,288.67199357]
[1693411217485,500.0,20.838,20.81,21.6947]
[1693411218080,500.0,20.838,20.809,258.18551066]
[1693411218275,500.0,20.838,20.799,14.4]
[1693411218276,500.0,20.829,20.799,14.4]
[1693411218483,500.0,20.829,20.801,14.4]
[1693411218674,20.4282,20.828,20.822,0.68610258]
[1693411218873,0.77481863,20.826,20.822,0.68610258]
[1693411219073,500.0,20.819,20.794,14.41]
[1693411219278,500.0,20.819,20.795,8.82981455]
[1693411220283,500.0,20.819,20.794,14.41]
[1693411220879,500.0,20.819,20.806,0.40604918]
[1693411220880,0.70998991,20.809,20.806,0.40604918]
[1693411221882,500.0,20.819,20.806,0.40604918]
[1693411222711,0.67471589,20.81,20.806,0.40604918]
[1693411223688,500.0,20.819,20.806,0.40604918]
[1693411224283,21.0437,20.818,20.806,0.40604918]
[1693411224685,21.0437,20.818,20.801,0.46414915]
[1693411224889,45.06137,20.818,20.801,0.46414915]
[1693411226952,24.01883,20.817,20.801,0.46414915]
[1693411227392,24.01883,20.817,20.797,0.5222724]
[1693411227393,7.37069369,20.816,20.797,0.5222724]
[1693411227590,500.0,20.809,20.797,0.5222724]
[1693411227780,24.02806,20.809,20.797,0.5222724]
[1693411228002,524.02806,20.809,20.797,0.5222724]
[1693411228497,24.02806,20.809,20.804,0.79225936]
[1693411228693,524.76445533,20.809,20.804,0.79225936]
[1693411228888,524.76445533,20.809,20.797,0.5222724]
[1693411229982,524.76445533,20.809,20.793,0.58041894]
[1693411230182,24.02921,20.808,20.789,0.63858878]
[1693411231492,0.76891857,20.801,20.781,53.14400673]
[1693411231695,0.76891857,20.801,20.782,8.83554407]
[1693411232301,24.02921,20.808,20.782,8.83554407]
[1693411232695,24.02921,20.808,20.797,0.06]
[1693411233001,38.53775853,20.809,20.797,0.06]
[1693411233209,527.21454316,20.819,20.797,0.06]
[1693411233401,31.38899538,20.818,20.797,0.06]
[1693411233592,31.39015538,20.817,20.797,0.06]
[1693411233794,500.0,20.81,20.797,0.06]
[1693411234798,65.910697,20.819,20.797,0.06]
[1693411235299,24.01767,20.818,20.797,0.06]
[1693411235497,0.66376333,20.806,20.797,0.06]
[1693411240403,19.873,20.818,20.799,500.0]
[1693411240603,293.69879986,20.829,20.801,14.41]
[1693411240794,20.5981,20.828,20.801,14.41]
[1693411241194,293.69879986,20.829,20.801,14.41]
[1693411241505,20.5981,20.827,20.801,14.41]
[1693411241701,24.00845,20.826,20.799,500.0]
[1693411241903,24.00845,20.826,20.801,21.6969]
[1693411242402,20.5981,20.825,20.801,21.6969]
[1693411242821,24.00845,20.826,20.801,21.6969]
[1693411243204,0.75955104,20.816,20.801,21.6969]
[1693411244100,20.5981,20.825,20.801,21.6969]
[1693411244300,24.00845,20.826,20.801,21.6969]
[1693411245904,20.7647,20.825,20.801,21.6969]
[1693411246106,24.00845,20.826,20.801,21.6969]
[1693411246706,0.76608359,20.816,20.801,21.6969]
[1693411247706,19.8231,20.825,20.801,21.6969]
[1693411248005,24.00845,20.826,20.806,0.06]
[1693411248217,24.0096,20.825,20.806,0.06]
[1693411250338,0.66784995,20.818,20.806,0.06]
[1693411251814,0.66784995,20.818,20.81,0.73113714]
[1693411260411,0.66784995,20.818,20.81,0.06737381]
[1693411260706,39.69139631,20.818,20.81,0.06737381]
[1693411260910,0.66784995,20.818,20.806,0.06]
[1693411261208,24.68551995,20.818,20.806,0.06]
[1693411261409,24.68551995,20.818,20.791,8.83071925]